lending/lending_fUSD_20241211
["ID","MTS","AMOUNT","RATE_DAILY","PERIOD"]
[344922186,1733881833150,-150.0,0.00010258,2]
[344922187,1733881833160,-991.18,0.00010263,2]
[344922188,1733881833170,-767.15786272,0.00010267,2]
[344922189,1733881833179,-247.91190462,0.00010267,2]
[344922190,1733881833189,-298.94768649,0.00010267,2]
[344922191,1733881833199,-150.0,0.00010271,2]
[344922192,1733881833209,-767.15786272,0.00010278,2]
[344922193,1733881833219,-247.91190462,0.00010278,2]
[344922194,1733881833229,-298.94768649,0.00010278,2]
[344922195,1733881833239,-150.0,0.00010281,2]
[344922196,1733881833248,-767.15786272,0.00010289,2]
[344922197,1733881833258,-247.91190462,0.00010289,2]
[344922198,1733881833268,-298.94768649,0.00010289,2]
[344922199,1733881833278,-150.0,0.00010299,2]
[344922200,1733881833289,-767.15786272,0.000103,2]
[344922201,1733881833299,-247.91190462,0.000103,2]
[344922202,1733881833309,-298.94768649,0.000103,2]
[344922203,1733881833319,-150.0,0.00010303,2]
[344922204,1733881833333,-150.0,0.00010303,2]
[344922205,1733881833349,-990.73,0.0001031,2]
[344922206,1733881833359,-767.15786272,0.00010311,2]
[344922207,1733881833369,-247.91190462,0.00010311,2]
[344922208,1733881833380,-298.94768649,0.00010311,2]
[344922209,1733881833390,-767.15786272,0.00010323,2]
[344922210,1733881833400,-247.91190462,0.00010323,2]
[344922211,1733881833409,-298.94768649,0.00010323,2]
[344922212,1733881833419,-150.0,0.00010326,2]
[344922213,1733881833428,-150.0,0.00010328,2]
[344922214,1733881833438,-767.15786272,0.00010334,2]
[344922215,1733881833452,-247.91190462,0.00010334,2]
[344922216,1733881833473,-298.94768649,0.00010334,2]
[344922217,1733881833492,-767.15786272,0.00010345,2]
[344922218,1733881833502,-247.91190462,0.00010345,2]
[344922219,1733881833514,-298.94768649,0.00010345,2]
[344922220,1733881833525,-150.0,0.00010349,2]
[344922221,1733881833536,-767.15786272,0.00010356,2]
[344922222,1733881833548,-247.91190462,0.00010356,2]
[344922223,1733881833560,-298.94768649,0.00010356,2]
[344922224,1733881833574,-150.0,0.00010356,2]
[344922225,1733881833584,-150.0,0.00010356,2]
[344922226,1733881833602,-150.0,0.00010356,2]
[344922227,1733881833624,-150.0,0.00010356,2]
[344922228,1733881833643,-150.0,0.00010356,2]
[344922229,1733881833652,-767.15786272,0.00010367,2]
[344922230,1733881833662,-247.91190462,0.00010367,2]
[344922231,1733881833672,-298.94768649,0.00010367,2]
[344922232,1733881833681,-990.78,0.00010368,2]
[344922233,1733881833691,-150.0,0.00010371,2]
[344922234,1733881833700,-767.15786272,0.00010379,2]
[344922235,1733881833710,-247.91190462,0.00010379,2]
[344922236,1733881833719,-298.94768649,0.00010379,2]
[344922237,1733881833729,-150.0,0.00010385,2]
[344922238,1733881833739,-767.15786272,0.0001039,2]
[344922239,1733881833748,-247.91190462,0.0001039,2]
[344922240,1733881833757,-298.94768649,0.0001039,2]
[344922241,1733881833767,-150.0,0.00010394,2]
[344922242,1733881833776,-767.15786272,0.00010401,2]
[344922243,1733881833786,-247.91190462,0.00010401,2]
[344922244,1733881833796,-298.94768649,0.00010401,2]
[344922245,1733881833806,-150.0,0.00010409,2]
[344922246,1733881833816,-767.15786272,0.00010412,2]
[344922247,1733881833829,-247.91190462,0.00010412,2]
[344922248,1733881833839,-298.94768649,0.00010412,2]
[344922249,1733881833849,-150.0,0.00010413,2]
[344922250,1733881833859,-150.0,0.00010417,2]
[344922251,1733881833869,-985.32,0.00010421,2]
[344922252,1733881833878,-767.15786272,0.00010423,2]
[344922253,1733881833888,-247.91190462,0.00010423,2]
[344922254,1733881833898,-298.94768649,0.00010423,2]
[344922255,1733881833907,-583.58,0.00010434,2]
[344922256,1733881833917,-767.15786272,0.00010435,2]
[344922257,1733881833926,-247.91190462,0.00010435,2]
[344922258,1733881833935,-298.94768649,0.00010435,2]
[344922259,1733881833945,-150.0,0.00010439,2]
[344922260,1733881833954,-335.788,0.0001044,2]
[344922261,1733881833964,-150.0,0.00010442,2]
[344922262,1733881833973,-767.15786272,0.00010446,2]
[344922263,1733881833983,-205.08133163,0.00010446,2]
[344922265,1733881837551,-42.83057299,0.00010446,2]
[344922267,1733881837561,-298.94768649,0.00010446,2]
[344922268,1733881837570,-767.15786272,0.00010457,2]
[344922269,1733881837582,-198.06766656,0.00010457,2]
[344922271,1733881837748,-49.84423806,0.00010457,2]
[344922272,1733881837758,-298.94768649,0.00010457,2]
[344922273,1733881837768,-150.0,0.00010462,2]
[344922274,1733881837778,-150.0,0.00010462,2]
[344922275,1733881837788,-767.15786272,0.00010468,2]
[344922276,1733881837797,-247.91190462,0.00010468,2]
[344922277,1733881837807,-298.94768649,0.00010468,2]
[344922278,1733881837816,-150.0,0.0001047,2]
[344922279,1733881837826,-767.15786272,0.00010479,2]
[344922280,1733881837836,-247.91190462,0.00010479,2]
[344922281,1733881837846,-298.94768649,0.00010479,2]
[344922282,1733881837855,-150.0,0.00010484,2]
[344922283,1733881837865,-767.15786272,0.00010491,2]
[344922284,1733881837874,-247.91190462,0.00010491,2]
[344922285,1733881837883,-298.94768649,0.00010491,2]
[344922286,1733881837893,-150.0,0.00010498,2]
[344922287,1733881837902,-767.15786272,0.00010502,2]
[344922288,1733881837911,-247.91190462,0.00010502,2]
[344922289,1733881837921,-298.94768649,0.00010502,2]
[344922290,1733881837930,-150.0,0.00010507,2]
[344922291,1733881837939,-767.15786272,0.00010513,2]
[344922292,1733881837949,-247.91190462,0.00010513,2]
[344922293,1733881837959,-298.94768649,0.00010513,2]
[344922294,1733881837968,-150.0,0.00010515,2]
[344922295,1733881837977,-767.15786272,0.00010524,2]
[344922296,1733881837987,-247.91190462,0.00010524,2]
[344922297,1733881837996,-298.94768649,0.00010524,2]
[344922298,1733881838006,-150.0,0.00010527,2]
[344922299,1733881838015,-150.0,0.0001053,2]
[344922300,1733881838025,-1262.0,0.00010532,2]
[344922301,1733881838034,-567.0,0.00010532,2]
[344922302,1733881838043,-150.319,0.00010532,2]
[344922303,1733881838053,-564.0,0.00010532,2]
[344922304,1733881838062,-817.0,0.00010532,2]
[344922305,1733881838071,-870.05514875,0.00010532,2]
[344922306,1733881838097,-2892.94485125,0.00010532,2]
[344922307,1733881838106,-535.0,0.00010532,2]
[344922308,1733881838115,-1236.35005318,0.00010532,2]
[344922309,1733881838126,-1642.60782158,0.00010532,2]
[344922315,1733881839771,-566.8777562,0.00010532,2]
[344922316,1733881839984,-150.16436904,0.00010532,2]
[344922317,1733881839995,-932.0,0.00010532,2]
[344922318,1733881840004,-101.43410605,0.00010532,2]
[344922319,1733881840016,-125.56589395,0.00010532,2]
[344922322,1733881840025,-3879.0,0.00010532,2]
[344922323,1733881840035,-150.0,0.00010532,2]
[344922325,1733881840044,-390.181,0.00010532,2]
[344922326,1733881840054,-150.0,0.00010532,2]
[344922327,1733881840063,-767.15786272,0.00010535,2]
[344922328,1733881840073,-247.91190462,0.00010535,2]
[344922329,1733881840085,-298.94768649,0.00010535,2]
[344922330,1733881840094,-150.0,0.00010541,2]
[344922331,1733881840103,-767.15786272,0.00010547,2]
[344922332,1733881840113,-247.91190462,0.00010547,2]
[344922333,1733881840122,-298.94768649,0.00010547,2]
[344922334,1733881840131,-150.0,0.00010552,2]
[344922335,1733881840140,-150.0,0.00010555,2]
[344922336,1733881840149,-596.62,0.00010557,2]
[344922337,1733881840160,-767.15786272,0.00010558,2]
[344922338,1733881840169,-247.91190462,0.00010558,2]
[344922339,1733881840178,-298.94768649,0.00010558,2]
[344922340,1733881840187,-150.0,0.00010568,2]
[344922341,1733881840197,-767.15786272,0.00010569,2]
[344922342,1733881840206,-247.91190462,0.00010569,2]
[344922343,1733881840215,-298.94768649,0.00010569,2]
[344922344,1733881840225,-150.0,0.00010575,2]
[344922345,1733881840234,-767.15786272,0.0001058,2]
[344922346,1733881840244,-247.91190462,0.0001058,2]
[344922347,1733881840253,-298.94768649,0.0001058,2]
[344922348,1733881840263,-150.0,0.00010584,2]
[344922349,1733881840272,-767.15786272,0.00010592,2]
[344922350,1733881840282,-247.91190462,0.00010592,2]
[344922351,1733881840291,-298.94768649,0.00010592,2]
[344922352,1733881840300,-150.0,0.00010598,2]
[344922353,1733881840309,-767.15786272,0.00010603,2]
[344922354,1733881840319,-247.91190462,0.00010603,2]
[344922355,1733881840329,-298.94768649,0.00010603,2]
[344922356,1733881840338,-150.0,0.00010612,2]
[344922357,1733881840347,-767.15786272,0.00010614,2]
[344922358,1733881840357,-247.91190462,0.00010614,2]
[344922359,1733881840367,-298.94768649,0.00010614,2]
[344922360,1733881840376,-150.0,0.0001062,2]
[344922361,1733881840396,-150.0,0.0001062,2]
[344922362,1733881840407,-767.15786272,0.00010625,2]
[344922363,1733881840418,-247.91190462,0.00010625,2]
[344922364,1733881840429,-298.94768649,0.00010625,2]
[344922365,1733881840439,-767.15786272,0.00010636,2]
[344922366,1733881840449,-247.91190462,0.00010636,2]
[344922367,1733881840459,-231.29031396,0.00010636,2]
[344922368,1733881840473,-67.65737253,0.00010636,2]
[344922369,1733881840483,-150.0,0.00010641,2]
[344922370,1733881840492,-150.0,0.00010643,2]
[344922371,1733881840502,-767.15786272,0.00010648,2]
[344922372,1733881840512,-247.91190462,0.00010648,2]
[344922373,1733881840521,-298.94768649,0.00010648,2]
[344922374,1733881840531,-767.15786272,0.00010659,2]
[344922375,1733881840541,-247.91190462,0.00010659,2]
[344922376,1733881840552,-298.94768649,0.00010659,2]
[344922377,1733881840563,-150.0,0.00010666,2]
[344922378,1733881840574,-150.0,0.00010669,2]
[344922379,1733881840588,-767.15786272,0.0001067,2]
[344922380,1733881840603,-247.91190462,0.0001067,2]
[344922381,1733881840617,-298.94768649,0.0001067,2]
[344922382,1733881840627,-150.0,0.00010673,2]
[344922383,1733881840637,-332.91075692,0.00010681,2]
[344922384,1733881840649,-434.2471058,0.00010681,2]
[344922385,1733881840659,-247.91190462,0.00010681,2]
[344922386,1733881840668,-298.94768649,0.00010681,2]
[344922387,1733881840678,-150.0,0.00010688,2]
[344922388,1733881840689,-767.15786272,0.00010692,2]
[344922389,1733881840699,-247.91190462,0.00010692,2]
[344922390,1733881840709,-298.94768649,0.00010692,2]
[344922391,1733881840718,-148.16176081,0.00010698,2]
[344922392,1733881840734,-1.83823919,0.00010698,2]
[344922393,1733881840743,-475.21396078,0.00010704,2]
[344922394,1733881840754,-291.94390194,0.00010704,2]
[344922395,1733881840764,-247.91190462,0.00010704,2]
[344922396,1733881840773,-298.94768649,0.00010704,2]
[344922397,1733881840783,-150.0,0.00010711,2]
[344922398,1733881840793,-767.15786272,0.00010715,2]
[344922399,1733881840802,-247.91190462,0.00010715,2]
[344922400,1733881840811,-298.94768649,0.00010715,2]
[344922401,1733881840821,-767.15786272,0.00010726,2]
[344922402,1733881840834,-247.91190462,0.00010726,2]
[344922403,1733881840843,-298.94768649,0.00010726,2]
[344922404,1733881840853,-150.0,0.00010726,2]
[344922405,1733881840863,-150.0,0.00010726,2]
[344922406,1733881840872,-150.0,0.00010726,2]
[344922407,1733881840882,-150.0,0.00010726,2]
[344922408,1733881840891,-150.0,0.00010726,2]
[344922409,1733881840900,-150.0,0.00010734,2]
[344922410,1733881840910,-152.31,0.00010736,2]
[344922411,1733881840919,-291.03,0.00010736,2]
[344922412,1733881840929,-974.74,0.00010736,2]
[344922413,1733881840939,-300.4,0.00010736,2]
[344922414,1733881840949,-364.37,0.00010736,2]
[344922415,1733881840959,-435.39,0.00010736,2]
[344922416,1733881840968,-767.15786272,0.00010737,2]
[344922417,1733881840978,-247.91190462,0.00010737,2]
[344922418,1733881840987,-298.94768649,0.00010737,2]
[344922419,1733881840997,-767.15786272,0.00010748,2]
[344922420,1733881841006,-247.91190462,0.00010748,2]
[344922421,1733881841016,-298.94768649,0.00010748,2]
[344922422,1733881841026,-150.0,0.00010754,2]
[344922423,1733881841035,-150.0,0.00010756,2]
[344922424,1733881841044,-767.15786272,0.0001076,2]
[344922425,1733881841054,-247.91190462,0.0001076,2]
[344922426,1733881841063,-298.94768649,0.0001076,2]
[344922427,1733881841073,-767.15786272,0.00010771,2]
[344922428,1733881841085,-247.91190462,0.00010771,2]
[344922429,1733881841096,-298.94768649,0.00010771,2]
[344922430,1733881841105,-1072.72835996,0.00010775,2]
[344922431,1733881841115,-150.0,0.00010779,2]
[344922432,1733881841124,-150.0,0.00010779,2]
[344922433,1733881841135,-767.15786272,0.00010782,2]
[344922434,1733881841146,-247.91190462,0.00010782,2]
[344922435,1733881841156,-298.94768649,0.00010782,2]
[344922436,1733881841165,-150.0,0.00010783,2]
[344922437,1733881841174,-767.15786272,0.00010793,2]
[344922438,1733881841184,-247.91190462,0.00010793,2]
[344922439,1733881841194,-298.94768649,0.00010793,2]
[344922440,1733881841203,-150.0,0.00010802,2]
[344922441,1733881841213,-767.15786272,0.00010804,2]
[344922442,1733881841222,-247.91190462,0.00010804,2]
[344922443,1733881841232,-298.94768649,0.00010804,2]
[344922444,1733881841242,-150.0,0.00010811,2]
[344922445,1733881841251,-767.15786272,0.00010816,2]
[344922446,1733881841260,-247.91190462,0.00010816,2]
[344922447,1733881841270,-298.94768649,0.00010816,2]
[344922448,1733881841280,-150.0,0.00010824,2]
[344922449,1733881841290,-673.11760019,0.00010827,2]
[344922453,1733881843667,-94.04026253,0.00010827,2]
[344922454,1733881843681,-247.91190462,0.00010827,2]
[344922455,1733881843695,-298.94768649,0.00010827,2]
[344922456,1733881843706,-150.0,0.00010832,2]
[344922457,1733881843719,-364.95651951,0.00010835,2]
[344922458,1733881843731,-767.15786272,0.00010838,2]
[344922459,1733881843743,-247.91190462,0.00010838,2]
[344922460,1733881843755,-298.94768649,0.00010838,2]
[344922461,1733881843768,-150.0,0.0001084,2]
[344922462,1733881843780,-150.0,0.00010847,2]
[344922463,1733881843792,-767.15786272,0.00010849,2]
[344922464,1733881843804,-247.91190462,0.00010849,2]
[344922465,1733881843817,-298.94768649,0.00010849,2]
[344922466,1733881843831,-767.15786272,0.00010861,2]
[344922467,1733881843843,-247.91190462,0.00010861,2]
[344922468,1733881843855,-298.94768649,0.00010861,2]
[344922469,1733881843867,-1000.0,0.00010868,2]
[344922470,1733881843879,-150.0,0.00010868,2]
[344922471,1733881843891,-150.0,0.00010869,2]
[344922472,1733881843902,-767.15786272,0.00010872,2]
[344922473,1733881843914,-247.91190462,0.00010872,2]
[344922474,1733881843926,-298.94768649,0.00010872,2]
[344922475,1733881843940,-767.15786272,0.00010883,2]
[344922476,1733881843952,-247.91190462,0.00010883,2]
[344922477,1733881843964,-298.94768649,0.00010883,2]
[344922478,1733881843975,-150.0,0.00010885,2]
[344922479,1733881843986,-3000.0,0.0001089,2]
[344922480,1733881843995,-150.0,0.00010892,2]
[344922481,1733881844007,-767.15786272,0.00010894,2]
[344922482,1733881844017,-247.91190462,0.00010894,2]
[344922483,1733881844029,-298.94768649,0.00010894,2]
[344922484,1733881844042,-150.0,0.00010897,2]
[344922485,1733881844053,-197.4012,0.00010898,2]
[344922486,1733881844063,-280.02723763,0.000109,2]
[344922487,1733881844074,-247.09835554,0.000109,2]
[344922488,1733881844087,-767.15786272,0.00010905,2]
[344922489,1733881844098,-247.91190462,0.00010905,2]
[344922491,1733881844109,-298.94768649,0.00010905,2]
[344922493,1733881844121,-150.0,0.00010911,2]
[344922495,1733881844133,-150.0,0.00010915,2]
[344922498,1733881844143,-767.15786272,0.00010917,2]
[344922500,1733881844153,-247.91190462,0.00010917,2]
[344922502,1733881844164,-298.94768649,0.00010917,2]
[344922504,1733881844174,-150.0,0.00010925,2]
[344922505,1733881844187,-767.15786272,0.00010928,2]
[344922506,1733881844198,-247.91190462,0.00010928,2]
[344922507,1733881844214,-298.94768649,0.00010928,2]
[344922508,1733881844226,-1204.318,0.00010931,2]
[344922509,1733881844237,-150.0,0.00010937,2]
[344922510,1733881844248,-150.0,0.00010937,2]
[344922511,1733881844260,-767.15786272,0.00010939,2]
[344922512,1733881844271,-247.91190462,0.00010939,2]
[344922513,1733881844283,-298.94768649,0.00010939,2]
[344922514,1733881844295,-767.15786272,0.0001095,2]
[344922515,1733881844306,-247.91190462,0.0001095,2]
[344922516,1733881844317,-298.94768649,0.0001095,2]
[344922517,1733881844329,-150.0,0.00010954,2]
[344922518,1733881844340,-19928.0,0.00010959,2]
[344922519,1733881844352,-150.0,0.0001096,2]
[344922520,1733881844363,-767.15786272,0.00010961,2]
[344922521,1733881844374,-247.91190462,0.00010961,2]
[344922522,1733881844385,-298.94768649,0.00010961,2]
[344922523,1733881844396,-767.15786272,0.00010973,2]
[344922524,1733881844407,-247.91190462,0.00010973,2]
[344922525,1733881844418,-298.94768649,0.00010973,2]
[344922526,1733881844429,-200.0,0.00010979,2]
[344922527,1733881844440,-150.0,0.00010982,2]
[344922528,1733881844451,-150.0,0.00010983,2]
[344922529,1733881844462,-554.2901227,0.00010983,2]
[344922530,1733881844473,-731.7204809,0.00010983,2]
[344922531,1733881844484,-200.0,0.00010984,2]
[344922532,1733881844495,-767.15786272,0.00010984,2]
[344922533,1733881844506,-247.91190462,0.00010984,2]
[344922534,1733881844517,-298.94768649,0.00010984,2]
[344922535,1733881844529,-420.0,0.00010984,2]
[344922536,1733881844540,-150.0,0.0001099,2]
[344922537,1733881844552,-200.0,0.00010993,2]
[344922538,1733881844563,-200.0,0.00010993,2]
[344922539,1733881844574,-500.0,0.00010994,2]
[344922540,1733881844588,-500.0,0.00010994,2]
[344922541,1733881844599,-156.0435487,0.00010994,2]
[344922542,1733881844615,-500.0,0.00010994,2]
[344922543,1733881844627,-500.0,0.00010994,2]
[344922544,1733881844639,-1006.44,0.00010994,2]
[344922545,1733881844651,-613.67,0.00010994,2]
[344922546,1733881844662,-948.42,0.00010994,2]
[344922547,1733881844673,-655.43,0.00010994,2]
[344922548,1733881844685,-4683.67,0.00010994,2]
[344922549,1733881844695,-500.0,0.00010994,2]
[344922550,1733881844706,-592.15,0.00010994,2]
[344922551,1733881844716,-500.0,0.00010994,2]
[344922552,1733881844728,-719.26,0.00010994,2]
[344922553,1733881844738,-456.28132874,0.00010994,2]
[344922554,1733881844750,-517.88,0.00010994,2]
[344922555,1733881844760,-500.0,0.00010994,2]
[344922556,1733881844771,-299.25122317,0.00010994,2]
[344922557,1733881844781,-200.0,0.00010995,2]
[344922558,1733881844792,-767.15786272,0.00010995,2]
[344922559,1733881844804,-247.91190462,0.00010995,2]
[344922560,1733881844815,-298.94768649,0.00010995,2]
[344922561,1733881844825,-4195.52347202,0.00010995,2]
[344922562,1733881844844,-378.59197779,0.00010995,2]
[344922563,1733881844861,-8149.88695101,0.00010995,2]
[344922564,1733881844877,-13656.52090875,0.00010995,2]
[344922594,1733881845717,-1248.409844,0.00010995,2]
[344922595,1733881845920,-2789.69539652,0.00010995,2]
[344922598,1733882742249,525.22,8.219e-05,2]
[344922599,1733882863739,250.0,9.457e-05,2]
[344922602,1733882927665,175.48,7.573e-05,2]
[344922603,1733882945009,614.6,9e-05,2]
[344922604,1733883031809,-843.08,9.566e-05,2]
[344922605,1733883031819,-1000.0,9.619e-05,2]
[344922607,1733883031829,-150.0,9.986e-05,2]
[344922608,1733883031838,-150.0,9.986e-05,2]
[344922609,1733883031848,-150.49946739,9.986e-05,2]
[344922610,1733883031857,-150.32004267,9.986e-05,2]
[344922611,1733883031869,-150.0,9.986e-05,2]
[344922613,1733883031878,-150.0,9.986e-05,2]
[344922615,1733883031888,-150.47153811,9.986e-05,2]
[344922618,1733883031898,-150.68174859,9.986e-05,2]
[344922621,1733883031907,-150.24050935,9.986e-05,2]
[344922623,1733883031917,-150.0,9.986e-05,2]
[344922624,1733883031927,-259.64227075,9.986e-05,2]
[344922625,1733883031937,-150.0,9.986e-05,2]
[344922626,1733883031946,-4157.11178988,0.0001,2]
[344922627,1733883032302,-474.0,0.0001,2]
[344922630,1733883032314,-1723.76742789,0.0001,2]
[344923172,1733883037948,-2596.53495837,0.0001,2]
[344923174,1733883037963,-1048.58582386,0.0001,2]
[344923176,1733883037973,-1391.9847064,0.0001,2]
[344923239,1733883040155,-10028.15689975,0.0001,2]
[344923240,1733883040166,-1044.00927329,0.0001,2]
[344923248,1733883043329,-4402.67471578,0.0001,2]
[344923251,1733883043340,-435.10551013,0.0001,2]
[344923253,1733883043597,-13688.67264,0.0001,2]
[344923254,1733883043610,-4666.8,0.0001,2]
[344923255,1733883043621,-1239.27540907,0.0001,2]
[344923256,1733883043632,-2599.444995,0.0001,2]
[344923257,1733883043644,-2322.1000001,0.0001,2]
[344923258,1733883043849,-11664.32922739,0.0001,2]
[344923261,1733883043861,-360.73662309,0.0001,2]
[344923262,1733883043871,-150.0,0.00010011,2]
[344923263,1733883043880,-1001.23,0.00010022,2]
[344923264,1733883043890,-495.68766998,0.00010024,2]
[344923302,1733883045925,-514.24233002,0.00010024,2]
[344923304,1733883045935,-1000.42,0.00010027,2]
[344923306,1733883045944,-1018.31,0.0001003,2]
[344923308,1733883045953,-992.94,0.00010035,2]
[344923310,1733883045967,-150.0,0.00010036,2]
[344923311,1733883045977,-990.07,0.0001004,2]
[344923312,1733883045986,-1011.7,0.00010047,2]
[344923313,1733883045995,-997.51,0.00010055,2]
[344923314,1733883046006,-150.0,0.00010056,2]
[344923316,1733883046015,-150.0,0.0001006,2]
[344923318,1733883046029,-995.99,0.00010065,2]
[344923320,1733883046038,-150.0,0.00010072,2]
[344923322,1733883046048,-982.81,0.00010079,2]
[344923324,1733883046057,-150.0,0.00010085,2]
[344923326,1733883046067,-1016.9,0.00010095,2]
[344923328,1733883046076,-150.0,0.0001011,2]
[344923330,1733883046085,-994.0,0.00010115,2]
[344923332,1733883046095,-150.0,0.00010125,2]
[344923334,1733883046104,-150.0,0.00010134,2]
[344923336,1733883046113,-982.47,0.00010141,2]
[344923338,1733883046123,-150.0,0.00010157,2]
[344923340,1733883046132,-150.0,0.00010159,2]
[344923342,1733883046141,-1015.07,0.00010173,2]
[344923344,1733883046150,-150.0,0.00010184,2]
[344923346,1733883046159,-150.0,0.00010194,2]
[344923348,1733883046168,-364.31,0.000102,2]
[344923350,1733883046177,-150.0,0.00010208,2]
[344923352,1733883046187,-1007.14,0.00010213,2]
[344923354,1733883046196,-150.0,0.00010233,2]
[344923356,1733883046205,-150.0,0.00010242,2]
[344923357,1733883046214,-150.0,0.00010258,2]
[344923358,1733883046223,-1007.63,0.00010262,2]
[344923359,1733883046232,-150.0,0.00010264,2]
[344923360,1733883046240,-126.78681597,0.00010264,2]
[344923361,1733883046252,-23.21318403,0.00010264,2]
[344923362,1733883046261,-150.0,0.00010282,2]
[344923363,1733883046275,-150.0,0.00010307,2]
[344923365,1733883046284,-983.79,0.00010325,2]
[344923367,1733883046293,-150.0,0.00010328,2]
[344923369,1733883046303,-150.0,0.00010332,2]
[344923371,1733883046312,-150.0,0.00010333,2]
[344923372,1733883046321,-150.0,0.00010356,2]
[344923373,1733883046330,-150.0,0.00010356,2]
[344923374,1733883046340,-150.0,0.00010381,2]
[344923375,1733883046350,-150.0,0.00010402,2]
[344923376,1733883046359,-997.62,0.00010403,2]
[344923377,1733883046368,-37.67678097,0.00010405,2]
[344923379,1733883046380,-112.32321903,0.00010405,2]
[344923380,1733883046389,-150.0,0.00010413,2]
[344923382,1733883046399,-150.0,0.0001043,2]
[344923384,1733883046408,-321.717,0.0001044,2]
[344923386,1733883046418,-384.10984097,0.00010449,2]
[344923387,1733883046430,-141.11015903,0.00010449,2]
[344923388,1733883046439,-150.0,0.00010455,2]
[344923389,1733883046448,-150.0,0.00010472,2]
[344923390,1733883046458,-150.0,0.00010479,2]
[344923391,1733883046467,-150.0,0.00010489,2]
[344923392,1733883046477,-877.5264237,0.00010489,2]
[344923393,1733883046488,-324.45,0.00010489,2]
[344923394,1733883046598,-1032.7,0.00010489,2]
[344923395,1733883046610,-1644.3235763,0.00010489,2]
[344923396,1733883046620,-150.0,0.00010498,2]
[344923397,1733883046630,-992.0,0.00010501,2]
[344923398,1733883046639,-150.0,0.00010504,2]
[344923399,1733883046649,-150.0,0.00010529,2]
[344923400,1733883046659,-434.888,0.00010532,2]
[344923401,1733883046668,-237.663,0.00010532,2]
[344923402,1733883046678,-562.523,0.00010532,2]
[344923403,1733883046687,-817.0,0.00010532,2]
[344923404,1733883046696,-3763.0,0.00010532,2]
[344923405,1733883046705,-3596.0,0.00010532,2]
[344923406,1733883046715,-435.025,0.00010532,2]
[344923407,1733883046724,-535.0,0.00010532,2]
[344923408,1733883046733,-150.0,0.00010541,2]
[344923409,1733883046742,-150.0,0.00010541,2]
[344923410,1733883046751,-150.0,0.00010553,2]
[344923411,1733883046760,-150.0,0.00010578,2]
[344923412,1733883046775,-150.0,0.00010584,2]
[344923413,1733883046784,-150.0,0.00010603,2]
[344923414,1733883046793,-150.0,0.0001061,2]
[344923415,1733883046802,-994.83,0.00010624,2]
[344923416,1733883046812,-150.0,0.00010627,2]
[344923417,1733883046821,-150.0,0.00010652,2]
[344923418,1733883046830,-150.0,0.00010669,2]
[344923419,1733883046840,-150.0,0.00010677,2]
[344923420,1733883046850,-150.0,0.0001068,2]
[344923421,1733883046859,-150.0,0.00010701,2]
[344923422,1733883046868,-150.0,0.00010726,2]
[344923423,1733883046877,-150.0,0.00010726,2]
[344923424,1733883046887,-150.0,0.00010749,2]
[344923425,1733883046897,-150.0,0.00010751,2]
[344923426,1733883046906,-150.0,0.00010754,2]
[344923427,1733883046916,-843.08,0.00010762,2]
[344923428,1733883046925,-1011.82,0.00010775,2]
[344923429,1733883046934,-991.94,0.00010775,2]
[344923430,1733883046944,-1148.1288687,0.00010775,2]
[344923431,1733883046953,-1032.76105013,0.00010775,2]
[344923432,1733883046964,-150.0,0.00010775,2]
[344923433,1733883046974,-150.0,0.000108,2]
[344923434,1733883046983,-150.0,0.00010818,2]
[344923435,1733883046993,-150.0,0.00010818,2]
[344923436,1733883047004,-1000.0,0.00010821,2]
[344923437,1733883047013,-150.0,0.00010825,2]